[Event "Romanian Superliga 2024"]
[Site "Mamaia"]
[Date "2024.09.28"]
[Round "1.15"]
[White "Marin, Mihail"]
[Black "Ghimpu, Samuel-Timotei"]
[Result "0-1"]
[ECO "A13"]
[WhiteElo "2455"]
[BlackElo "2456"]
[Annotator "RC"]
[PlyCount "104"]
[EventDate "2024.09.26"]
[EventType "team-tourn"]
[EventCountry "ROU"]
[SourceTitle "playchess.com"]
[Source "ChessBase"]
[SourceQuality "1"]
[TimeControl "40/5400+30:1800+30"]

1. c4 {[%emt 0:00:04]} e6 {[%emt 0:00:33]} 2. g3 {[%emt 0:00:06]} d5 {[%emt 0:00:29]} 3. Bg2 {[%emt 0:00:06]} d4 {[%emt 0:00:22]} 4. Nf3 {[%emt 0:00:08]} Nc6 {[%emt 0:00:08]} 5. O-O {[%emt 0:00:44]} Nh6 {[%emt 0:00:05]} 6. d3 {[%emt 0:02:49]} Nf5 {[%emt 0:00:58]} 7. Na3 {[%emt 0:00:41]} Bxa3 {[%emt 0:00:18]} 8. bxa3 {[%emt 0:00:06]} O-O {[%emt 0:00:09]} 9. Nd2 {[%emt 0:01:03]} Rb8 {[%emt 0:01:54]} 10. Nb3 {[%emt 0:05:35]} h6 {[%emt 0:00:22]} 11. e4 {[%emt 0:04:17]} dxe3 {[%emt 0:00:12]} 12. fxe3 {[%emt 0:01:20]} Ne5 {[%emt 0:00:15]} 13. e4 {[%emt 0:06:41]} Ne7 {[%emt 0:25:33]} 14. Qh5 {[%emt 0:06:42]} N5c6 {[%emt 0:07:53]} 15. Qe2 {[%emt 0:05:41]} e5 {[%emt 0:01:07]} 16. Be3 {[%emt 0:02:13]} b6 {[%emt 0:04:04]} 17. Rad1 {[%emt 0:09:06]} Ng6 {[%emt 0:02:09]} 18. a4 {[%emt 0:02:16]} Be6 {[%emt 0:07:28]} 19. a5 {[%emt 0:04:44]} bxa5 {[%emt 0:01:56]} 20. Qf2 {[%emt 0:10:22]} a6 {[%emt 0:18:54]} 21. h4 {[%emt 0:01:45]} Bg4 {[%emt 0:04:04]} 22. Rd2 {[%emt 0:02:39]} f6 {[%emt 0:01:42]} 23. h5 {[%emt 0:02:54]} Nge7 {[%emt 0:01:34]} 24. Bf3 {[%emt 0:00:44]} Qc8 {[%emt 0:03:40]} 25. Nc5 {[%emt 0:00:45]} Bxf3 {[%emt 0:01:36]} 26. Qxf3 {[%emt 0:00:04]} Rd8 {[%emt 0:00:28]} 27. Kg2 {[%emt 0:01:56]} Rd6 {[%emt 0:06:55]} 28. Rfd1 {[%emt 0:02:43]} Nd8 {[%emt 0:02:58]} 29. d4 {[%emt 0:03:12]} exd4 {[%emt 0:00:23]} 30. Bxd4 {[%emt 0:00:54]} Nf7 {[%emt 0:02:49]} 31. Qf4 {[%emt 0:02:28]} Nc6 {[%emt 0:01:32]} 32. Bc3 {[%emt 0:01:39]} Nce5 {[%emt 0:01:25]} 33. Bxe5 {[%emt 0:09:16]} Nxe5 {[%emt 0:00:03]} 34. Rd5 {[%emt 0:00:50]} Nxc4 {[%emt 0:01:21]} 35. Nd3 {[%emt 0:01:20]} Qb7 {[%emt 0:01:24]} 36. Nc5 {[%emt 0:01:19]} Qc6 {[%emt 0:01:05]} 37. Kh3 {[%emt 0:01:04]} Re8 {[%emt 0:00:35]} 38. R1d4 {[%emt 0:01:36]} Rxd5 {[%emt 0:00:29]} 39. Rxd5 {[%emt 0:00:30]} Ne3 {[%emt 0:00:20]} 40. Rd3 {[%emt 0:00:00]} Qxc5 {[%emt 0:00:00]} 41. Qxe3 {[%emt 0:04:21]} Qxh5+ {[%emt 0:00:19]} 42. Kg2 {[%emt 0:00:04]} Qe5 {[%emt 0:00:18]} 43. Rd4 {[%emt 0:03:06]} f5 {[%emt 0:00:13]} 44. Qb3+ {[%emt 0:00:43]} Kh7 {[%emt 0:00:30]} 45. Qd5 {[%emt 0:00:27]} fxe4 {[%emt 0:00:12]} 46. Qxe5 {[%emt 0:00:06]} Rxe5 {[%emt 0:00:04]} 47. Rc4 {[%emt 0:00:44]} e3 {[%emt 0:00:25]} 48. Kf1 {[%emt 0:00:05]} e2+ {[%emt 0:00:35]} 49. Ke1 {[%emt 0:00:05]} h5 {[%emt 0:04:40]} 50. Rxc7 {[%emt 0:02:01]} Kg6 {[%emt 0:00:08]} 51. Rc6+ {[%emt 0:01:27]} Kf5 {[%emt 0:00:14]} 52. Rxa6 {[%emt 0:00:08]} g5 {[%emt 0:00:03]} 0-1

[Event "Romanian Superliga 2024"]
[Site "Mamaia"]
[Date "2024.09.28"]
[Round "1.16"]
[White "Gheorghiu, Calin"]
[Black "Miron, Lucian-Costin"]
[Result "0-1"]
[ECO "C47"]
[WhiteElo "2313"]
[BlackElo "2473"]
[Annotator "RC"]
[PlyCount "108"]
[EventDate "2024.09.26"]
[EventType "team-tourn"]
[EventCountry "ROU"]
[SourceTitle "playchess.com"]
[Source "ChessBase"]
[SourceQuality "1"]
[TimeControl "40/5400+30:1800+30"]

1. e4 {[%emt 0:00:16]} e5 {[%emt 0:00:34]} 2. Nf3 {[%emt 0:00:23]} Nc6 {[%emt 0:00:05]} 3. Nc3 {[%emt 0:00:14]} Nf6 {[%emt 0:00:46]} 4. d4 {[%emt 0:02:23]} exd4 {[%emt 0:02:19]} 5. Nxd4 {[%emt 0:00:16]} Bb4 {[%emt 0:00:10]} 6. Nxc6 {[%emt 0:00:11]} bxc6 {[%emt 0:00:05]} 7. Bd3 {[%emt 0:00:06]} d5 {[%emt 0:00:21]} 8. exd5 {[%emt 0:00:10]} O-O {[%emt 0:00:07]} 9. O-O {[%emt 0:00:06]} cxd5 {[%emt 0:00:04]} 10. h3 {[%emt 0:00:08]} Re8 {[%emt 0:07:52]} 11. Qf3 {[%emt 0:06:41]} Rb8 {[%emt 0:00:49]} 12. Bg5 {[%emt 0:08:03]} Be6 {[%emt 0:14:37]} 13. Ne2 {[%emt 0:04:58]} h6 {[%emt 0:01:42]} 14. Bh4 {[%emt 0:04:27]} Be7 {[%emt 0:04:28]} 15. b3 {[%emt 0:05:56]} Nd7 {[%emt 0:21:32]} 16. Bxe7 {[%emt 0:05:37]} Qxe7 {[%emt 0:00:10]} 17. Qg3 {[%emt 0:18:28]} c5 {[%emt 0:05:32]} 18. Nf4 {[%emt 0:01:27]} Qg5 {[%emt 0:13:23]} 19. Qh2 {[%emt 0:03:24]} Qe5 {[%emt 0:13:49]} 20. Rae1 {[%emt 0:01:14]} Qd6 {[%emt 0:00:35]} 21. Re3 {[%emt 0:05:46]} g5 {[%emt 0:04:35]} 22. Nxe6 {[%emt 0:06:49]} Qxh2+ {[%emt 0:00:32]} 23. Kxh2 {[%emt 0:00:03]} Rxe6 {[%emt 0:00:14]} 24. Rg3 {[%emt 0:04:51]} Nf6 {[%emt 0:02:26]} 25. h4 {[%emt 0:06:09]} Nh5 {[%emt 0:00:05]} 26. Rg4 {[%emt 0:00:16]} Nf6 {[%emt 0:00:06]} 27. Ra4 {[%emt 0:04:28]} Rb7 {[%emt 0:00:13]} 28. g3 {[%emt 0:00:32]} Kg7 {[%emt 0:01:41]} 29. Kg2 {[%emt 0:00:11]} Rc7 {[%emt 0:01:20]} 30. hxg5 {[%emt 0:01:38]} hxg5 {[%emt 0:00:06]} 31. Rd1 {[%emt 0:01:04]} Re8 {[%emt 0:01:36]} 32. Kg1 {[%emt 0:05:22]} Re6 {[%emt 0:01:18]} 33. Kg2 {[%emt 0:01:35]} Re8 {[%emt 0:00:08]} 34. Kg1 {[%emt 0:00:27]} Re6 {[%emt 0:00:29]} 35. Ra5 {[%emt 0:00:03]} Re8 {[%emt 0:02:09]} 36. Bf1 {[%emt 0:00:23]} Kg6 {[%emt 0:01:42]} 37. Bd3+ {[%emt 0:00:14]} Kg7 {[%emt 0:00:06]} 38. Bf1 {[%emt 0:01:09]} Kg6 {[%emt 0:00:34]} 39. c3 {[%emt 0:00:27]} Re6 {[%emt 0:00:43]} 40. Bd3+ {[%emt 0:00:00]} Kg7 {[%emt 0:00:00]} 41. Bf1 {[%emt 0:02:51]} g4 {[%emt 0:06:08]} 42. Ra4 {[%emt 0:03:38]} Rce7 {[%emt 0:02:11]} 43. Kg2 {[%emt 0:03:42]} Re1 {[%emt 0:05:04]} 44. Rxe1 {[%emt 0:02:01]} Rxe1 {[%emt 0:00:10]} 45. Rxa7 {[%emt 0:05:16]} Ne4 {[%emt 0:03:03]} 46. Re7 {[%emt 0:01:04]} Rd1 {[%emt 0:09:09]} 47. c4 {[%emt 0:05:48]} Nd2 {[%emt 0:01:48]} 48. Re5 {[%emt 0:08:54]} Nxf1 {[%emt 0:05:05]} 49. cxd5 {[%emt 0:02:24]} f6 {[%emt 0:00:11]} 50. Re7+ {[%emt 0:01:11]} Kg6 {[%emt 0:00:05]} 51. f3 {[%emt 0:00:20]} gxf3+ {[%emt 0:00:14]} 52. Kxf3 {[%emt 0:00:03]} Rxd5 {[%emt 0:01:02]} 53. Re2 {[%emt 0:00:45]} Rd3+ {[%emt 0:02:00]} 54. Kg2 {[%emt 0:00:18]} Nxg3 {[%emt 0:00:21]} 0-1

[Event "Romanian Superliga 2024"]
[Site "Mamaia"]
[Date "2024.09.28"]
[Round "1.17"]
[White "Secheres, Adrian-Simion"]
[Black "Coca, Cristi-Iulian"]
[Result "1-0"]
[ECO "A49"]
[WhiteElo "2344"]
[BlackElo "2233"]
[Annotator "ChessBase"]
[PlyCount "91"]
[EventDate "2024.09.26"]
[EventType "team-tourn"]
[EventCountry "ROU"]
[SourceTitle "playchess.com"]
[Source "ChessBase"]
[SourceQuality "1"]
[TimeControl "40/5400+30:1800+30"]

1. d4 {[%emt 0:00:08]} Nf6 {[%emt 0:00:06]} 2. Nf3 {[%emt 0:00:14]} g6 {[%emt 0:00:07]} 3. g3 {[%emt 0:00:19]} Bg7 {[%emt 0:00:05]} 4. Bg2 {[%emt 0:00:06]} O-O {[%emt 0:00:06]} 5. O-O {[%emt 0:00:05]} d6 {[%emt 0:00:24]} 6. Re1 {[%emt 0:00:36]} c5 {[%emt 0:06:39]} 7. c3 {[%emt 0:00:37]} Nc6 {[%emt 0:03:32]} 8. d5 {[%emt 0:00:21]} Na5 {[%emt 0:01:55]} 9. e4 {[%emt 0:00:30]} e6 {[%emt 0:07:25]} 10. Na3 {[%emt 0:06:25]} exd5 {[%emt 0:01:40]} 11. exd5 {[%emt 0:00:11]} Qb6 {[%emt 0:14:05]} 12. b4 {[%emt 0:05:54]} cxb4 {[%emt 0:02:59]} 13. Be3 {[%emt 0:01:01]} Qc7 {[%emt 0:07:58]} 14. cxb4 {[%emt 0:02:01]} Qc3 {[%emt 0:00:09]} 15. Nb5 {[%emt 0:04:33]} Qxb4 {[%emt 0:00:19]} 16. Rb1 {[%emt 0:01:09]} Qc4 {[%emt 0:05:45]} 17. Qd2 {[%emt 0:05:00]} b6 {[%emt 0:06:33]} 18. Nfd4 {[%emt 0:03:59]} Bd7 {[%emt 0:10:50]} 19. Rec1 {[%emt 0:09:01]} Bxb5 {[%emt 0:00:17]} 20. Rxc4 {[%emt 0:01:04]} Bxc4 {[%emt 0:00:07]} 21. Bh6 {[%emt 0:06:39]} Ne8 {[%emt 0:10:58]} 22. h4 {[%emt 0:08:00]} Bxh6 {[%emt 0:01:44]} 23. Qxh6 {[%emt 0:00:06]} Ng7 {[%emt 0:00:21]} 24. Qf4 {[%emt 0:05:40]} Rfe8 {[%emt 0:04:54]} 25. Rc1 {[%emt 0:02:49]} Nh5 {[%emt 0:03:36]} 26. Qd2 {[%emt 0:01:48]} Rac8 {[%emt 0:04:03]} 27. Nc6 {[%emt 0:02:25]} Nxc6 {[%emt 0:00:17]} 28. dxc6 {[%emt 0:00:21]} d5 {[%emt 0:00:47]} 29. Bxd5 {[%emt 0:01:07]} Bxd5 {[%emt 0:00:07]} 30. Qxd5 {[%emt 0:00:04]} Rc7 {[%emt 0:00:36]} 31. Qd6 {[%emt 0:04:27]} Rec8 {[%emt 0:00:19]} 32. g4 {[%emt 0:01:58]} Ng7 {[%emt 0:00:07]} 33. h5 {[%emt 0:01:19]} gxh5 {[%emt 0:02:55]} 34. gxh5 {[%emt 0:00:05]} Nxh5 {[%emt 0:00:23]} 35. Kh2 {[%emt 0:01:06]} Ng7 {[%emt 0:00:21]} 36. Qh6 {[%emt 0:03:54]} Re8 {[%emt 0:02:43]} 37. Rg1 {[%emt 0:01:53]} f5 {[%emt 0:00:08]} 38. Qd6 {[%emt 0:01:45]} Rec8 {[%emt 0:01:32]} 39. Qf6 {[%emt 0:02:05]} Kh8 {[%emt 0:00:37]} 40. Rd1 {[%emt 0:00:00]} Rg8 {[%emt 0:00:00]} 41. Rd7 {[%emt 0:01:12]} Rcc8 {[%emt 0:02:44]} 42. c7 {[%emt 0:00:34]} Rcf8 {[%emt 0:00:49]} 43. Qe7 {[%emt 0:00:47]} Re8 {[%emt 0:00:22]} 44. Qf6 {[%emt 0:00:42]} Ref8 {[%emt 0:00:05]} 45. Qxf8 {[%emt 0:00:45]} Rxf8 {[%emt 0:00:06]} 46. Rd8 {[%emt 0:00:03]} 1-0

[Event "Romanian Superliga 2024"]
[Site "Mamaia"]
[Date "2024.09.28"]
[Round "1.18"]
[White "Dobre, Claudiu-Cristian"]
[Black "Nastore, Pavel-Alexandru"]
[Result "1/2-1/2"]
[ECO "A27"]
[WhiteElo "2294"]
[BlackElo "2252"]
[Annotator "ChessBase"]
[PlyCount "124"]
[EventDate "2024.09.26"]
[EventType "team-tourn"]
[EventCountry "ROU"]
[SourceTitle "playchess.com"]
[Source "ChessBase"]
[SourceQuality "1"]
[TimeControl "40/5400+30:1800+30"]

1. c4 {[%emt 0:00:04]} e5 {[%emt 0:00:17]} 2. Nc3 {[%emt 0:00:06]} Bb4 {[%emt 0:00:09]} 3. Nf3 {[%emt 0:00:06]} Nc6 {[%emt 0:01:12]} 4. Nd5 {[%emt 0:00:20]} a5 {[%emt 0:02:37]} 5. a3 {[%emt 0:00:10]} Be7 {[%emt 0:12:06]} 6. d4 {[%emt 0:02:09]} d6 {[%emt 0:06:00]} 7. e3 {[%emt 0:19:02]} Nf6 {[%emt 0:01:42]} 8. b3 {[%emt 0:04:57]} O-O {[%emt 0:04:34]} 9. Bb2 {[%emt 0:01:33]} Re8 {[%emt 0:01:22]} 10. Nxe7+ {[%emt 0:02:46]} Qxe7 {[%emt 0:00:21]} 11. Be2 {[%emt 0:15:59]} e4 {[%emt 0:07:17]} 12. Nd2 {[%emt 0:00:14]} d5 {[%emt 0:01:31]} 13. Qc2 {[%emt 0:00:41]} Be6 {[%emt 0:06:35]} 14. O-O {[%emt 0:11:52]} Nd8 {[%emt 0:14:55]} 15. Rae1 {[%emt 0:03:01]} c6 {[%emt 0:16:36]} 16. f3 {[%emt 0:13:55]} Bf5 {[%emt 0:00:06]} 17. fxe4 {[%emt 0:00:40]} Bxe4 {[%emt 0:00:04]} 18. Nxe4 {[%emt 0:00:10]} Nxe4 {[%emt 0:00:04]} 19. Bd3 {[%emt 0:00:36]} g6 {[%emt 0:04:16]} 20. g4 {[%emt 0:01:07]} Qd7 {[%emt 0:08:22]} 21. Qg2 {[%emt 0:01:02]} a4 {[%emt 0:06:54]} 22. b4 {[%emt 0:01:19]} Re7 {[%emt 0:00:03]} 23. Kh1 {[%emt 0:04:23]} b5 {[%emt 0:01:15]} 24. cxb5 {[%emt 0:02:01]} cxb5 {[%emt 0:00:03]} 25. Bxe4 {[%emt 0:01:03]} Rxe4 {[%emt 0:00:11]} 26. Rf4 {[%emt 0:00:07]} Rxf4 {[%emt 0:00:34]} 27. exf4 {[%emt 0:00:05]} Ne6 {[%emt 0:03:17]} 28. Re5 {[%emt 0:10:00]} Rd8 {[%emt 0:00:02]} 29. f5 {[%emt 0:00:39]} Nc7 {[%emt 0:01:17]} 30. Bc1 {[%emt 0:03:04]} f6 {[%emt 0:00:12]} 31. Re2 {[%emt 0:00:18]} Re8 {[%emt 0:00:15]} 32. Bf4 {[%emt 0:00:41]} Rxe2 {[%emt 0:00:58]} 33. Qxe2 {[%emt 0:00:03]} Ne8 {[%emt 0:00:06]} 34. fxg6 {[%emt 0:01:20]} hxg6 {[%emt 0:00:04]} 35. h3 {[%emt 0:01:06]} Kf7 {[%emt 0:00:20]} 36. Kg2 {[%emt 0:01:08]} Ng7 {[%emt 0:01:10]} 37. Qc2 {[%emt 0:00:23]} Ne6 {[%emt 0:00:07]} 38. Be3 {[%emt 0:00:10]} Kg7 {[%emt 0:01:32]} 39. Kf2 {[%emt 0:00:52]} Qe8 {[%emt 0:01:00]} 40. Kf3 {[%emt 0:00:00]} Qd7 {[%emt 0:00:00]} 41. Kg2 {[%emt 0:11:37]} g5 {[%emt 0:07:32]} 42. Kf3 {[%emt 0:02:51]} Qc7 {[%emt 0:11:22]} 43. Qxc7+ {[%emt 0:00:16]} Nxc7 {[%emt 0:00:03]} 44. Bc1 {[%emt 0:05:55]} Kg6 {[%emt 0:00:38]} 45. Bb2 {[%emt 0:01:39]} Ne6 {[%emt 0:02:27]} 46. Kg3 {[%emt 0:00:54]} f5 {[%emt 0:02:27]} 47. Kf3 {[%emt 0:03:24]} Kf6 {[%emt 0:03:18]} 48. Kg3 {[%emt 0:00:52]} Nf4 {[%emt 0:01:40]} 49. Ba1 {[%emt 0:00:11]} Ng6 {[%emt 0:00:25]} 50. Bb2 {[%emt 0:00:27]} Nf8 {[%emt 0:01:46]} 51. Kf3 {[%emt 0:00:55]} Nd7 {[%emt 0:00:35]} 52. Kg3 {[%emt 0:00:41]} Nb6 {[%emt 0:00:13]} 53. Kf3 {[%emt 0:00:39]} Nc4 {[%emt 0:00:24]} 54. Bc1 {[%emt 0:00:03]} Nd6 {[%emt 0:00:34]} 55. Kg3 {[%emt 0:02:10]} Ne4+ {[%emt 0:00:14]} 56. Kf3 {[%emt 0:00:32]} Kg6 {[%emt 0:00:06]} 57. Ke2 {[%emt 0:00:45]} Nc3+ {[%emt 0:02:31]} 58. Kf3 {[%emt 0:00:11]} Kf6 {[%emt 0:00:25]} 59. Ke3 {[%emt 0:01:59]} Ne4 {[%emt 0:00:28]} 60. Kf3 {[%emt 0:00:15]} Nd6 {[%emt 0:00:24]} 61. Kg3 {[%emt 0:01:07]} Ne4+ {[%emt 0:00:20]} 62. Kf3 {[%emt 0:00:35]} Nd6 {[%emt 0:00:02]} 1/2-1/2

[Event "Romanian Superliga 2024"]
[Site "Mamaia"]
[Date "2024.09.28"]
[Round "1.19"]
[White "Lashkin, Jegor"]
[Black "Mendonca, Leon Luke"]
[Result "1/2-1/2"]
[ECO "E15"]
[WhiteElo "2472"]
[BlackElo "2622"]
[Annotator "RC"]
[PlyCount "69"]
[EventDate "2024.09.26"]
[EventType "team-tourn"]
[EventCountry "ROU"]
[SourceTitle "playchess.com"]
[Source "ChessBase"]
[SourceQuality "1"]
[TimeControl "40/5400+30:1800+30"]

1. d4 {[%emt 0:00:06]} Nf6 {[%emt 0:00:08]} 2. c4 {[%emt 0:00:10]} e6 {[%emt 0:00:22]} 3. Nf3 {[%emt 0:00:09]} b6 {[%emt 0:00:20]} 4. g3 {[%emt 0:00:14]} Ba6 {[%emt 0:00:26]} 5. b3 {[%emt 0:00:17]} Bb4+ {[%emt 0:00:23]} 6. Bd2 {[%emt 0:00:12]} Be7 {[%emt 0:00:08]} 7. Nc3 {[%emt 0:00:15]} O-O {[%emt 0:02:07]} 8. Bg2 {[%emt 0:00:21]} c6 {[%emt 0:03:39]} 9. e4 {[%emt 0:01:00]} d5 {[%emt 0:00:19]} 10. exd5 {[%emt 0:00:28]} cxd5 {[%emt 0:00:06]} 11. Ne5 {[%emt 0:01:01]} Bb7 {[%emt 0:01:13]} 12. O-O {[%emt 0:00:41]} Nc6 {[%emt 0:00:16]} 13. Bf4 {[%emt 0:01:18]} Rc8 {[%emt 0:02:12]} 14. Rc1 {[%emt 0:00:33]} Na5 {[%emt 0:03:19]} 15. cxd5 {[%emt 0:06:02]} Bb4 {[%emt 0:23:17]} 16. Bd2 {[%emt 0:27:16]} Nxd5 {[%emt 0:14:39]} 17. Nxd5 {[%emt 0:09:07]} Rxc1 {[%emt 0:00:20]} 18. Nf6+ {[%emt 0:12:07]} Qxf6 {[%emt 0:01:12]} 19. Qxc1 {[%emt 0:01:05]} Bxd2 {[%emt 0:01:23]} 20. Qxd2 {[%emt 0:00:06]} Bxg2 {[%emt 0:00:17]} 21. Kxg2 {[%emt 0:00:05]} Qd8 {[%emt 0:02:55]} 22. Rc1 {[%emt 0:04:54]} f6 {[%emt 0:01:39]} 23. Nf3 {[%emt 0:00:49]} Qd7 {[%emt 0:07:31]} 24. Qc3 {[%emt 0:03:23]} Rd8 {[%emt 0:02:03]} 25. Qc7 {[%emt 0:02:46]} Nb7 {[%emt 0:02:03]} 26. a4 {[%emt 0:10:43]} Nd6 {[%emt 0:19:26]} 27. a5 {[%emt 0:01:08]} Nb5 {[%emt 0:01:59]} 28. Qxd7 {[%emt 0:00:28]} Rxd7 {[%emt 0:00:01]} 29. axb6 {[%emt 0:01:59]} axb6 {[%emt 0:00:02]} 30. Rc8+ {[%emt 0:01:02]} Kf7 {[%emt 0:00:11]} 31. Rb8 {[%emt 0:00:07]} Nxd4 {[%emt 0:03:36]} 32. Nxd4 {[%emt 0:00:24]} Rxd4 {[%emt 0:00:05]} 33. Rb7+ {[%emt 0:00:13]} Kg6 {[%emt 0:00:03]} 34. Rxb6 {[%emt 0:00:04]} e5 {[%emt 0:00:03]} 35. h4 {[%emt 0:01:01]} 1/2-1/2

[Event "Romanian Superliga 2024"]
[Site "Mamaia"]
[Date "2024.09.28"]
[Round "1.20"]
[White "Aryan Chopra"]
[Black "Ogleznev, Alexandr"]
[Result "1-0"]
[ECO "B48"]
[WhiteElo "2620"]
[BlackElo "2301"]
[Annotator "RC"]
[PlyCount "77"]
[EventDate "2024.09.26"]
[EventType "team-tourn"]
[EventCountry "ROU"]
[SourceTitle "playchess.com"]
[Source "ChessBase"]
[SourceQuality "1"]
[TimeControl "40/5400+30:1800+30"]

1. e4 {[%emt 0:00:03]} c5 {[%emt 0:00:05]} 2. Nf3 {[%emt 0:00:05]} e6 {[%emt 0:00:05]} 3. d4 {[%emt 0:00:04]} cxd4 {[%emt 0:00:04]} 4. Nxd4 {[%emt 0:00:05]} Nc6 {[%emt 0:00:23]} 5. Nc3 {[%emt 0:00:10]} Qc7 {[%emt 0:00:15]} 6. Be3 {[%emt 0:00:18]} a6 {[%emt 0:00:09]} 7. Qf3 {[%emt 0:00:43]} Nf6 {[%emt 0:01:11]} 8. O-O-O {[%emt 0:00:20]} Ne5 {[%emt 0:01:34]} 9. Qg3 {[%emt 0:00:51]} b5 {[%emt 0:00:32]} 10. f4 {[%emt 0:00:42]} Neg4 {[%emt 0:00:21]} 11. Bg1 {[%emt 0:00:28]} h5 {[%emt 0:02:23]} 12. e5 {[%emt 0:00:34]} b4 {[%emt 0:01:44]} 13. Na4 {[%emt 0:00:26]} Ne4 {[%emt 0:02:17]} 14. Qe1 {[%emt 0:02:48]} Bb7 {[%emt 0:03:06]} 15. h3 {[%emt 0:20:42]} Nh6 {[%emt 0:02:05]} 16. Bd3 {[%emt 0:02:43]} Nc5 {[%emt 0:22:26]} 17. Nxc5 {[%emt 0:01:01]} Bxc5 {[%emt 0:01:06]} 18. Qe2 {[%emt 0:09:19]} g6 {[%emt 0:03:52]} 19. Nf3 {[%emt 0:05:26]} Nf5 {[%emt 0:06:16]} 20. Bxc5 {[%emt 0:01:58]} Qxc5 {[%emt 0:00:20]} 21. Bxf5 {[%emt 0:03:25]} gxf5 {[%emt 0:00:21]} 22. Rd6 {[%emt 0:01:09]} Rc8 {[%emt 0:10:29]} 23. Rhd1 {[%emt 0:03:16]} Rc7 {[%emt 0:12:21]} 24. Ng5 {[%emt 0:11:21]} a5 {[%emt 0:11:04]} 25. R1d4 {[%emt 0:12:39]} h4 {[%emt 0:04:48]} 26. Qd2 {[%emt 0:05:51]} Bc6 {[%emt 0:01:12]} 27. Kb1 {[%emt 0:08:58]} Ke7 {[%emt 0:05:17]} 28. Nf3 {[%emt 0:01:35]} Bb5 {[%emt 0:00:15]} 29. Qd1 {[%emt 0:05:26]} Rhc8 {[%emt 0:02:20]} 30. Rd2 {[%emt 0:00:23]} Bc6 {[%emt 0:00:57]} 31. Nd4 {[%emt 0:01:26]} Be4 {[%emt 0:00:24]} 32. Qh5 {[%emt 0:00:04]} a4 {[%emt 0:01:38]} 33. Qxh4+ {[%emt 0:00:02]} Ke8 {[%emt 0:00:36]} 34. g4 {[%emt 0:02:05]} b3 {[%emt 0:00:56]} 35. gxf5 {[%emt 0:00:38]} exf5 {[%emt 0:04:21]} 36. Qh8+ {[%emt 0:00:37]} Ke7 {[%emt 0:00:02]} 37. Qf6+ {[%emt 0:00:02]} Ke8 {[%emt 0:00:12]} 38. Rg2 {[%emt 0:00:46]} bxc2+ {[%emt 0:01:31]} 39. Kc1 {[%emt 0:00:04]} 1-0

[Event "Romanian Superliga 2024"]
[Site "Mamaia"]
[Date "2024.09.28"]
[Round "1.21"]
[White "Vavric, Pavel"]
[Black "Nanu, Costica-Ciprian"]
[Result "0-1"]
[ECO "B48"]
[WhiteElo "2285"]
[BlackElo "2525"]
[Annotator "RC"]
[PlyCount "68"]
[EventDate "2024.09.26"]
[EventType "team-tourn"]
[EventCountry "ROU"]
[SourceTitle "playchess.com"]
[Source "ChessBase"]
[SourceQuality "1"]
[TimeControl "40/5400+30:1800+30"]

1. e4 {[%emt 0:00:04]} c5 {[%emt 0:00:22]} 2. Nf3 {[%emt 0:00:07]} e6 {[%emt 0:00:06]} 3. d4 {[%emt 0:00:47]} cxd4 {[%emt 0:00:06]} 4. Nxd4 {[%emt 0:00:04]} Nc6 {[%emt 0:00:07]} 5. Nc3 {[%emt 0:00:47]} Qc7 {[%emt 0:02:36]} 6. Be3 {[%emt 0:10:15]} a6 {[%emt 0:00:22]} 7. Be2 {[%emt 0:00:27]} Nf6 {[%emt 0:00:24]} 8. a3 {[%emt 0:00:07]} d6 {[%emt 0:00:30]} 9. O-O {[%emt 0:00:21]} Be7 {[%emt 0:00:17]} 10. f4 {[%emt 0:01:15]} O-O {[%emt 0:04:48]} 11. Kh1 {[%emt 0:00:57]} Bd7 {[%emt 0:04:34]} 12. Qe1 {[%emt 0:02:04]} Rac8 {[%emt 0:14:30]} 13. Qg3 {[%emt 0:02:47]} Rfd8 {[%emt 0:00:40]} 14. Rae1 {[%emt 0:07:54]} Be8 {[%emt 0:06:06]} 15. Bd3 {[%emt 0:14:24]} b5 {[%emt 0:11:55]} 16. Qh3 {[%emt 0:15:17]} h6 {[%emt 0:07:43]} 17. Nce2 {[%emt 0:13:10]} Qb7 {[%emt 0:05:55]} 18. Ng3 {[%emt 0:04:21]} b4 {[%emt 0:04:31]} 19. e5 {[%emt 0:08:29]} Nd5 {[%emt 0:03:34]} 20. Nxc6 {[%emt 0:03:51]} Bxc6 {[%emt 0:01:39]} 21. f5 {[%emt 0:02:18]} Nxe3 {[%emt 0:01:17]} 22. Rxe3 {[%emt 0:00:03]} Bg5 {[%emt 0:00:36]} 23. Re2 {[%emt 0:00:56]} exf5 {[%emt 0:03:51]} 24. Qxf5 {[%emt 0:05:23]} g6 {[%emt 0:00:30]} 25. Qg4 {[%emt 0:00:03]} dxe5 {[%emt 0:00:28]} 26. Qxb4 {[%emt 0:02:49]} Bf4 {[%emt 0:03:39]} 27. Ne4 {[%emt 0:00:30]} Qa7 {[%emt 0:12:43]} 28. Qa5 {[%emt 0:00:33]} Qd4 {[%emt 0:00:48]} 29. Qe1 {[%emt 0:03:29]} Qxb2 {[%emt 0:01:32]} 30. Bxa6 {[%emt 0:00:35]} Rc7 {[%emt 0:01:10]} 31. Bd3 {[%emt 0:00:24]} Qxa3 {[%emt 0:00:50]} 32. Nf2 {[%emt 0:00:36]} Rd4 {[%emt 0:04:04]} 33. Kg1 {[%emt 0:00:36]} Qc5 {[%emt 0:00:28]} 34. Nh3 {[%emt 0:01:01]} Rxd3+ {[%emt 0:00:47]} 0-1